[Event "Titled Tuesday Blitz January 31 Early 2023"]
[White "Ezat, Mohamed"]
[Black "Battlecruiser_Operational"]
[WhiteFideId "10600906"]
[WhiteElo "2402"]
[BlackElo "2422"]
[Result "1-0"]
[Round "11"]
[TimeControl "180+2"]
[Date "2023.01.31"]
[WhiteClock "0:00:15"]
[BlackClock "0:00:02"]

1. d4 {[%clk 0:02:51]}  e6 {[%clk 0:03:00]} 2. c4 {[%clk 0:02:50]}  f5 {[%clk 0:03:00]} 3. Nc3 {[%clk 0:02:51]}  Nf6 {[%clk 0:03:00]} 4. d5 {[%clk 0:02:50]}  Bb4 {[%clk 0:02:58]} 5. Bd2 {[%clk 0:02:49]}  O-O {[%clk 0:02:53]} 6. Nf3 {[%clk 0:02:48]}  d6 {[%clk 0:02:48]} 7. dxe6 {[%clk 0:02:47]}  Bxe6 {[%clk 0:02:47]} 8. e3 {[%clk 0:02:47]}  Nc6 {[%clk 0:02:42]} 9. Be2 {[%clk 0:02:46]}  Ne5 {[%clk 0:02:29]} 10. Nd4 {[%clk 0:02:46]}  Bd7 {[%clk 0:02:25]} 11. O-O {[%clk 0:02:44]}  a5 {[%clk 0:02:10]} 12. a3 {[%clk 0:01:53]}  Bxc3 {[%clk 0:02:08]} 13. Bxc3 {[%clk 0:01:53]}  Ne4 {[%clk 0:02:08]} 14. Rc1 {[%clk 0:01:52]}  a4 {[%clk 0:01:55]} 15. Nf3 {[%clk 0:01:49]}  Nxc3 {[%clk 0:01:52]} 16. Rxc3 {[%clk 0:01:49]}  Bc6 {[%clk 0:01:50]} 17. c5 {[%clk 0:01:44]}  Rf6 {[%clk 0:01:18]} 18. Nd4 {[%clk 0:01:09]}  dxc5 {[%clk 0:00:49]} 19. Rxc5 {[%clk 0:01:06]}  Qe7 {[%clk 0:00:40]} 20. Qc1 {[%clk 0:01:00]}  Rg6 {[%clk 0:00:23]} 21. Nxc6 {[%clk 0:00:59]}  Rxc6 {[%clk 0:00:19]} 22. Rxc6 {[%clk 0:00:57]}  Nxc6 {[%clk 0:00:19]} 23. Bf3 {[%clk 0:00:54]}  Ra6 {[%clk 0:00:17]} 24. Rd1 {[%clk 0:00:48]}  h6 {[%clk 0:00:16]} 25. Qc2 {[%clk 0:00:44]}  Qf6 {[%clk 0:00:13]} 26. h3 {[%clk 0:00:37]}  Kh7 {[%clk 0:00:12]} 27. g4 {[%clk 0:00:24]}  Ne5 {[%clk 0:00:11]} 28. Be2 {[%clk 0:00:24]}  Rc6 {[%clk 0:00:11]} 29. Qxa4 {[%clk 0:00:20]}  fxg4 {[%clk 0:00:10]} 30. Qe4+ {[%clk 0:00:21]}  Ng6 {[%clk 0:00:06]} 31. hxg4 {[%clk 0:00:20]}  Qxb2 {[%clk 0:00:06]} 32. Bd3 {[%clk 0:00:17]}  Qxa3 {[%clk 0:00:05]} 33. Rb1 {[%clk 0:00:16]}  Rc1+ {[%clk 0:00:03]} 34. Rxc1 {[%clk 0:00:16]}  Qxc1+ {[%clk 0:00:03]} 35. Kg2 {[%clk 0:00:16]}  Qc6 {[%clk 0:00:04]} 36. Qxc6 {[%clk 0:00:16]}  bxc6 {[%clk 0:00:05]} 37. Be4 {[%clk 0:00:17]}  c5 {[%clk 0:00:03]} 38. Kf1 {[%clk 0:00:15]}  c4 {[%clk 0:00:02]} 39. Ke2 {[%clk 0:00:15]}  c5 {[%clk 0:00:02]} 40. Kd2 {[%clk 0:00:16]}  h5 {[%clk 0:00:02]} 41. gxh5 {[%clk 0:00:15]}  Kh6 {[%clk 0:00:02]} 42. hxg6 {[%clk 0:00:15]} 1-0


[Site "https://www.chess.com"]

[Event "Titled Tuesday Blitz January 31 Early 2023"]
[White "Forgacs, Attila Jr."]
[Black "Veiga, Jose Francisco R P Neves"]
[WhiteFideId "773654"]
[BlackFideId "1930087"]
[WhiteElo "2264"]
[BlackElo "2406"]
[Result "1/2-1/2"]
[Round "11"]
[TimeControl "180+2"]
[Date "2023.01.31"]
[WhiteClock "0:00:08"]
[BlackClock "0:00:37"]

1. e4 {[%clk 0:03:00]}  c5 {[%clk 0:02:54]} 2. Nf3 {[%clk 0:03:01]}  e6 {[%clk 0:02:55]} 3. d4 {[%clk 0:03:00]}  cxd4 {[%clk 0:02:56]} 4. Nxd4 {[%clk 0:03:01]}  Nc6 {[%clk 0:02:56]} 5. Nc3 {[%clk 0:03:01]}  Qc7 {[%clk 0:02:52]} 6. Be3 {[%clk 0:03:02]}  a6 {[%clk 0:02:50]} 7. a3 {[%clk 0:03:02]}  b5 {[%clk 0:02:46]} 8. Nxc6 {[%clk 0:03:01]}  Qxc6 {[%clk 0:02:45]} 9. Be2 {[%clk 0:02:54]}  Bc5 {[%clk 0:02:42]} 10. Bd4 {[%clk 0:02:52]}  Nf6 {[%clk 0:02:40]} 11. Bf3 {[%clk 0:02:41]}  Bb7 {[%clk 0:02:12]} 12. e5 {[%clk 0:02:31]}  Nd5 {[%clk 0:02:12]} 13. Nxd5 {[%clk 0:02:28]}  exd5 {[%clk 0:02:12]} 14. c3 {[%clk 0:02:23]}  O-O {[%clk 0:02:11]} 15. Bxc5 {[%clk 0:02:14]}  Qxc5 {[%clk 0:02:11]} 16. Qd4 {[%clk 0:02:15]}  Qxd4 {[%clk 0:02:05]} 17. cxd4 {[%clk 0:02:16]}  d6 {[%clk 0:02:06]} 18. exd6 {[%clk 0:02:11]}  Rfe8+ {[%clk 0:02:05]} 19. Kd2 {[%clk 0:02:11]}  Re6 {[%clk 0:02:04]} 20. Rhe1 {[%clk 0:01:58]}  Rd8 {[%clk 0:02:03]} 21. Rac1 {[%clk 0:01:51]}  Rxe1 {[%clk 0:02:01]} 22. Rxe1 {[%clk 0:01:45]}  Bc6 {[%clk 0:01:52]} 23. Re7 {[%clk 0:01:37]}  Rxd6 {[%clk 0:01:50]} 24. Rc7 {[%clk 0:01:36]}  g5 {[%clk 0:01:44]} 25. b4 {[%clk 0:01:32]}  Kg7 {[%clk 0:01:42]} 26. Ra7 {[%clk 0:01:22]}  Bd7 {[%clk 0:01:40]} 27. Rc7 {[%clk 0:01:18]}  g4 {[%clk 0:01:37]} 28. Be2 {[%clk 0:01:13]}  Bf5 {[%clk 0:01:37]} 29. f3 {[%clk 0:01:04]}  h5 {[%clk 0:01:35]} 30. fxg4 {[%clk 0:01:02]}  hxg4 {[%clk 0:01:36]} 31. Ra7 {[%clk 0:00:40]}  Rc6 {[%clk 0:01:28]} 32. Bd3 {[%clk 0:00:37]}  Bxd3 {[%clk 0:01:26]} 33. Kxd3 {[%clk 0:00:38]}  Kg6 {[%clk 0:01:25]} 34. Rd7 {[%clk 0:00:35]}  Rc1 {[%clk 0:01:06]} 35. Rxd5 {[%clk 0:00:34]}  Rg1 {[%clk 0:01:05]} 36. g3 {[%clk 0:00:34]}  Rg2 {[%clk 0:01:02]} 37. Ke4 {[%clk 0:00:32]}  Rxh2 {[%clk 0:01:00]} 38. Kf4 {[%clk 0:00:32]}  Rf2+ {[%clk 0:00:45]} 39. Kxg4 {[%clk 0:00:31]}  f5+ {[%clk 0:00:46]} 40. Kh3 {[%clk 0:00:30]}  Kg5 {[%clk 0:00:46]} 41. Rd6 {[%clk 0:00:27]}  Rf3 {[%clk 0:00:44]} 42. Rxa6 {[%clk 0:00:23]}  f4 {[%clk 0:00:44]} 43. Ra5 {[%clk 0:00:14]}  Rxg3+ {[%clk 0:00:44]} 44. Kh2 {[%clk 0:00:14]}  Kg4 {[%clk 0:00:44]} 45. Rxb5 {[%clk 0:00:13]}  Rxa3 {[%clk 0:00:45]} 46. Rb8 {[%clk 0:00:12]}  Ra2+ {[%clk 0:00:44]} 47. Kg1 {[%clk 0:00:11]}  Rd2 {[%clk 0:00:41]} 48. Ra8 {[%clk 0:00:06]}  Rxd4 {[%clk 0:00:40]} 49. Ra3 {[%clk 0:00:06]}  Rxb4 {[%clk 0:00:37]} 50. Kf2 {[%clk 0:00:05]}  Rb2+ {[%clk 0:00:37]} 51. Kf1 {[%clk 0:00:05]}  Kg5 {[%clk 0:00:36]} 52. Rc3 {[%clk 0:00:05]}  Kf5 {[%clk 0:00:37]} 53. Ra3 {[%clk 0:00:05]}  Kg4 {[%clk 0:00:38]} 54. Rc3 {[%clk 0:00:05]}  Rh2 {[%clk 0:00:38]} 55. Ra3 {[%clk 0:00:05]}  Rb2 {[%clk 0:00:39]} 56. Rc3 {[%clk 0:00:05]}  Rd2 {[%clk 0:00:38]} 57. Ra3 {[%clk 0:00:06]}  Rd4 {[%clk 0:00:39]} 58. Rb3 {[%clk 0:00:06]}  Rd2 {[%clk 0:00:39]} 59. Ra3 {[%clk 0:00:06]}  Rd5 {[%clk 0:00:38]} 60. Rb3 {[%clk 0:00:06]}  f3 {[%clk 0:00:38]} 61. Rb8 {[%clk 0:00:06]}  Rd1+ {[%clk 0:00:34]} 62. Kf2 {[%clk 0:00:06]}  Rd2+ {[%clk 0:00:35]} 63. Kf1 {[%clk 0:00:06]}  Rd1+ {[%clk 0:00:32]} 64. Kf2 {[%clk 0:00:06]}  Rd2+ {[%clk 0:00:33]} 65. Kf1 {[%clk 0:00:06]}  Rg2 {[%clk 0:00:31]} 66. Rg8+ {[%clk 0:00:07]}  Kh3 {[%clk 0:00:32]} 67. Rh8+ {[%clk 0:00:07]}  Kg3 {[%clk 0:00:32]} 68. Rg8+ {[%clk 0:00:07]}  Kf4 {[%clk 0:00:33]} 69. Rf8+ {[%clk 0:00:07]}  Ke4 {[%clk 0:00:34]} 70. Re8+ {[%clk 0:00:08]}  Kf5 {[%clk 0:00:34]} 71. Rf8+ {[%clk 0:00:08]}  Kg4 {[%clk 0:00:35]} 72. Rg8+ {[%clk 0:00:08]}  Kf4 {[%clk 0:00:36]} 73. Rxg2 {[%clk 0:00:08]}  fxg2+ {[%clk 0:00:37]} 74. Kxg2 {[%clk 0:00:08]} 1/2-1/2


[Site "https://www.chess.com"]

[Event "Titled Tuesday Blitz January 31 Early 2023"]
[White "Bilan, Danila"]
[Black "Kononenko, Dmitry"]
[WhiteFideId "24161918"]
[BlackFideId "14113538"]
[WhiteElo "2303"]
[BlackElo "2256"]
[Result "0-1"]
[Round "11"]
[TimeControl "180+2"]
[Date "2023.01.31"]
[WhiteClock "0:00:01"]
[BlackClock "0:01:17"]

1. d4 {[%clk 0:02:58]}  Nf6 {[%clk 0:02:59]} 2. Nf3 {[%clk 0:02:59]}  g6 {[%clk 0:02:59]} 3. Bg5 {[%clk 0:02:58]}  Bg7 {[%clk 0:02:59]} 4. c3 {[%clk 0:02:58]}  c5 {[%clk 0:02:58]} 5. e3 {[%clk 0:02:58]}  cxd4 {[%clk 0:02:58]} 6. cxd4 {[%clk 0:02:56]}  Ne4 {[%clk 0:02:55]} 7. Bh4 {[%clk 0:02:48]}  Qb6 {[%clk 0:02:53]} 8. Qc2 {[%clk 0:02:39]}  Nc6 {[%clk 0:02:44]} 9. Qxe4 {[%clk 0:01:39]}  Qxb2 {[%clk 0:02:43]} 10. d5 {[%clk 0:01:37]}  Ne5 {[%clk 0:02:15]} 11. Nd4 {[%clk 0:00:39]}  Qxa1 {[%clk 0:02:06]} 12. f4 {[%clk 0:00:39]}  f5 {[%clk 0:02:01]} 13. Qc2 {[%clk 0:00:39]}  Ng4 {[%clk 0:01:57]} 14. Nb3 {[%clk 0:00:25]}  Qb2 {[%clk 0:01:52]} 15. Qxb2 {[%clk 0:00:21]}  Bxb2 {[%clk 0:01:53]} 16. Kd2 {[%clk 0:00:22]}  d6 {[%clk 0:01:48]} 17. h3 {[%clk 0:00:19]}  Nh6 {[%clk 0:01:48]} 18. Be2 {[%clk 0:00:18]}  Kf7 {[%clk 0:01:47]} 19. Nc3 {[%clk 0:00:15]}  Bxc3+ {[%clk 0:01:46]} 20. Kxc3 {[%clk 0:00:16]}  Bd7 {[%clk 0:01:47]} 21. Kd2 {[%clk 0:00:14]}  Rhc8 {[%clk 0:01:47]} 22. Nd4 {[%clk 0:00:14]}  Ng8 {[%clk 0:01:46]} 23. g4 {[%clk 0:00:13]}  Nf6 {[%clk 0:01:47]} 24. gxf5 {[%clk 0:00:12]}  gxf5 {[%clk 0:01:48]} 25. Bd3 {[%clk 0:00:07]}  Rc5 {[%clk 0:01:42]} 26. Rb1 {[%clk 0:00:04]}  b6 {[%clk 0:01:38]} 27. Ke2 {[%clk 0:00:04]}  Rac8 {[%clk 0:01:35]} 28. Kf3 {[%clk 0:00:03]}  Nxd5 {[%clk 0:01:32]} 29. Nxf5 {[%clk 0:00:02]}  Rc3 {[%clk 0:01:26]} 30. Nh6+ {[%clk 0:00:01]}  Kf8 {[%clk 0:01:19]} 31. Rg1 {[%clk 0:00:01]}  Be6 {[%clk 0:01:19]} 32. e4 {[%clk 0:00:01]}  Rxd3+ {[%clk 0:01:19]} 33. Ke2 {[%clk 0:00:01]}  Nxf4+ {[%clk 0:01:17]} 0-1


[Site "https://www.chess.com"]

[Event "Titled Tuesday Blitz January 31 Early 2023"]
[White "Bruned, Yvain"]
[Black "Fiorito, Joaquin"]
[WhiteFideId "2250292"]
[BlackFideId "180173"]
[WhiteElo "2286"]
[BlackElo "2405"]
[Result "1-0"]
[Round "11"]
[TimeControl "180+2"]
[Date "2023.01.31"]
[WhiteClock "0:00:55"]
[BlackClock "0:00:49"]

1. b3 {[%clk 0:03:00]}  d5 {[%clk 0:02:59]} 2. Bb2 {[%clk 0:03:01]}  c5 {[%clk 0:02:59]} 3. e3 {[%clk 0:03:02]}  f6 {[%clk 0:02:58]} 4. f4 {[%clk 0:03:01]}  Nc6 {[%clk 0:02:58]} 5. Bb5 {[%clk 0:03:00]}  a6 {[%clk 0:02:55]} 6. Bxc6+ {[%clk 0:03:00]}  bxc6 {[%clk 0:02:55]} 7. Nf3 {[%clk 0:02:58]}  e6 {[%clk 0:02:56]} 8. O-O {[%clk 0:02:57]}  Bd6 {[%clk 0:02:57]} 9. d3 {[%clk 0:02:58]}  Ne7 {[%clk 0:02:58]} 10. Qe2 {[%clk 0:02:58]}  O-O {[%clk 0:02:58]} 11. Nbd2 {[%clk 0:02:58]}  a5 {[%clk 0:02:58]} 12. a4 {[%clk 0:02:57]}  Ba6 {[%clk 0:02:58]} 13. Kh1 {[%clk 0:02:58]}  Rb8 {[%clk 0:02:58]} 14. c4 {[%clk 0:02:50]}  Qd7 {[%clk 0:02:54]} 15. g3 {[%clk 0:02:48]}  Ng6 {[%clk 0:02:47]} 16. e4 {[%clk 0:02:44]}  d4 {[%clk 0:02:47]} 17. Rae1 {[%clk 0:02:39]}  e5 {[%clk 0:02:46]} 18. f5 {[%clk 0:02:30]}  Kh8 {[%clk 0:02:47]} 19. fxg6 {[%clk 0:02:29]}  h6 {[%clk 0:02:31]} 20. Nh4 {[%clk 0:02:26]}  Bc8 {[%clk 0:02:28]} 21. Nf5 {[%clk 0:02:25]}  Qc7 {[%clk 0:02:29]} 22. Qh5 {[%clk 0:02:24]}  Bxf5 {[%clk 0:02:29]} 23. Rxf5 {[%clk 0:02:17]}  Qb6 {[%clk 0:02:26]} 24. Ba3 {[%clk 0:02:14]}  Qc7 {[%clk 0:02:23]} 25. Kg2 {[%clk 0:02:13]}  Rb7 {[%clk 0:02:23]} 26. Bc1 {[%clk 0:02:05]}  Qb6 {[%clk 0:02:21]} 27. Qd1 {[%clk 0:02:03]}  Qb4 {[%clk 0:02:20]} 28. Bb2 {[%clk 0:01:50]}  Qb6 {[%clk 0:02:13]} 29. Ref1 {[%clk 0:01:48]}  Kg8 {[%clk 0:02:12]} 30. h4 {[%clk 0:01:44]}  Be7 {[%clk 0:02:10]} 31. Bc1 {[%clk 0:01:40]}  Qb4 {[%clk 0:02:10]} 32. Bb2 {[%clk 0:01:39]}  Qb6 {[%clk 0:02:09]} 33. R5f2 {[%clk 0:01:39]}  Rfb8 {[%clk 0:02:08]} 34. Qg4 {[%clk 0:01:37]}  Bf8 {[%clk 0:02:04]} 35. Qe6+ {[%clk 0:01:33]}  Kh8 {[%clk 0:02:05]} 36. Qg4 {[%clk 0:01:30]}  Qb4 {[%clk 0:02:03]} 37. Qh5 {[%clk 0:01:29]}  Qb6 {[%clk 0:01:59]} 38. g4 {[%clk 0:01:29]}  Kg8 {[%clk 0:01:50]} 39. g5 {[%clk 0:01:29]}  fxg5 {[%clk 0:01:36]} 40. hxg5 {[%clk 0:01:28]}  Qd8 {[%clk 0:01:36]} 41. Rf7 {[%clk 0:01:26]}  Rxf7 {[%clk 0:01:35]} 42. Rxf7 {[%clk 0:01:27]}  Qe8 {[%clk 0:01:19]} 43. Bc1 {[%clk 0:01:18]}  Qe6 {[%clk 0:01:14]} 44. gxh6 {[%clk 0:01:16]}  gxh6 {[%clk 0:01:15]} 45. Qf5 {[%clk 0:01:16]}  Qe8 {[%clk 0:01:06]} 46. Qf6 {[%clk 0:01:08]}  Qc8 {[%clk 0:01:06]} 47. Qf5 {[%clk 0:01:06]}  Qe8 {[%clk 0:01:01]} 48. Kg3 {[%clk 0:00:58]}  Bg7 {[%clk 0:01:00]} 49. Ba3 {[%clk 0:00:56]}  h5 {[%clk 0:00:49]} 50. Qxh5 {[%clk 0:00:55]} 1-0


[Site "https://www.chess.com"]

[Event "Titled Tuesday Blitz January 31 Early 2023"]
[White "Delorme, Axel"]
[Black "Biastoch, Bennet"]
[WhiteFideId "632023"]
[BlackFideId "12939889"]
[WhiteElo "2483"]
[BlackElo "2257"]
[Result "0-1"]
[Round "11"]
[TimeControl "180+2"]
[Date "2023.01.31"]
[WhiteClock "0:00:06"]
[BlackClock "0:00:24"]

1. e4 {[%clk 0:03:00]}  c5 {[%clk 0:02:57]} 2. Nf3 {[%clk 0:02:58]}  Nc6 {[%clk 0:02:56]} 3. Bb5 {[%clk 0:02:56]}  g6 {[%clk 0:02:53]} 4. O-O {[%clk 0:02:55]}  Bg7 {[%clk 0:02:53]} 5. c3 {[%clk 0:02:52]}  d5 {[%clk 0:02:45]} 6. e5 {[%clk 0:02:43]}  a6 {[%clk 0:02:41]} 7. Bxc6+ {[%clk 0:02:42]}  bxc6 {[%clk 0:02:42]} 8. h3 {[%clk 0:02:41]}  e6 {[%clk 0:02:40]} 9. d3 {[%clk 0:02:41]}  Ne7 {[%clk 0:02:40]} 10. Bf4 {[%clk 0:02:39]}  O-O {[%clk 0:02:40]} 11. Nbd2 {[%clk 0:02:38]}  a5 {[%clk 0:02:39]} 12. c4 {[%clk 0:02:35]}  Ba6 {[%clk 0:02:37]} 13. Qc2 {[%clk 0:02:34]}  Rb8 {[%clk 0:02:37]} 14. Rfd1 {[%clk 0:02:32]}  Qb6 {[%clk 0:02:36]} 15. Rab1 {[%clk 0:02:29]}  Rb7 {[%clk 0:02:32]} 16. Be3 {[%clk 0:02:23]}  Nf5 {[%clk 0:02:26]} 17. Bf4 {[%clk 0:02:18]}  Ne7 {[%clk 0:02:19]} 18. b3 {[%clk 0:02:07]}  h6 {[%clk 0:02:08]} 19. Rbc1 {[%clk 0:01:55]}  Kh7 {[%clk 0:02:05]} 20. Be3 {[%clk 0:01:48]}  Nf5 {[%clk 0:02:03]} 21. cxd5 {[%clk 0:01:48]}  Nxe3 {[%clk 0:02:03]} 22. fxe3 {[%clk 0:01:47]}  cxd5 {[%clk 0:02:03]} 23. d4 {[%clk 0:01:39]}  cxd4 {[%clk 0:01:58]} 24. exd4 {[%clk 0:01:40]}  Bxe5 {[%clk 0:01:55]} 25. Nxe5 {[%clk 0:01:36]}  Qxd4+ {[%clk 0:01:55]} 26. Kh1 {[%clk 0:01:36]}  Qxe5 {[%clk 0:01:56]} 27. Nf3 {[%clk 0:01:37]}  Qf6 {[%clk 0:01:46]} 28. Qc6 {[%clk 0:01:37]}  Ra7 {[%clk 0:01:37]} 29. Qc5 {[%clk 0:01:32]}  Rfa8 {[%clk 0:01:36]} 30. Nd4 {[%clk 0:01:25]}  a4 {[%clk 0:01:19]} 31. bxa4 {[%clk 0:01:21]}  Bc4 {[%clk 0:01:19]} 32. Rc3 {[%clk 0:01:09]}  Rxa4 {[%clk 0:01:13]} 33. Rf3 {[%clk 0:01:08]}  Qg7 {[%clk 0:01:13]} 34. Rb1 {[%clk 0:00:55]}  R8a7 {[%clk 0:00:53]} 35. Nc6 {[%clk 0:00:32]}  Rc7 {[%clk 0:00:45]} 36. Qd6 {[%clk 0:00:30]}  f5 {[%clk 0:00:24]} 37. Re3 {[%clk 0:00:06]}  Ra6 {[%clk 0:00:24]} 0-1


[Site "https://www.chess.com"]

[Event "Titled Tuesday Blitz January 31 Early 2023"]
[White "Turzo, Attila"]
[Black "Ivanova, Karina"]
[WhiteFideId "704954"]
[BlackFideId "24139750"]
[WhiteElo "2279"]
[BlackElo "2085"]
[Result "0-1"]
[Round "11"]
[TimeControl "180+2"]
[Date "2023.01.31"]
[WhiteClock "0:00:02"]
[BlackClock "0:00:58"]

1. d4 {[%clk 0:03:00]}  Nf6 {[%clk 0:02:58]} 2. c4 {[%clk 0:02:59]}  e6 {[%clk 0:02:58]} 3. Nf3 {[%clk 0:02:58]}  b6 {[%clk 0:02:57]} 4. g3 {[%clk 0:02:58]}  Bb7 {[%clk 0:02:57]} 5. Bg2 {[%clk 0:02:58]}  Be7 {[%clk 0:02:57]} 6. O-O {[%clk 0:02:58]}  O-O {[%clk 0:02:57]} 7. Nc3 {[%clk 0:02:58]}  Ne4 {[%clk 0:02:56]} 8. Bd2 {[%clk 0:02:53]}  Nxc3 {[%clk 0:02:49]} 9. Bxc3 {[%clk 0:02:52]}  d6 {[%clk 0:02:46]} 10. d5 {[%clk 0:02:47]}  e5 {[%clk 0:02:45]} 11. e4 {[%clk 0:02:44]}  Nd7 {[%clk 0:02:42]} 12. b4 {[%clk 0:02:42]}  f5 {[%clk 0:02:39]} 13. exf5 {[%clk 0:02:41]}  Rxf5 {[%clk 0:02:39]} 14. Qc2 {[%clk 0:02:19]}  Rf8 {[%clk 0:02:37]} 15. Nd2 {[%clk 0:02:12]}  Nf6 {[%clk 0:02:35]} 16. Ne4 {[%clk 0:02:12]}  Bc8 {[%clk 0:02:30]} 17. Ng5 {[%clk 0:01:58]}  h6 {[%clk 0:02:22]} 18. Ne6 {[%clk 0:01:57]}  Bxe6 {[%clk 0:02:20]} 19. dxe6 {[%clk 0:01:57]}  Rc8 {[%clk 0:02:19]} 20. f4 {[%clk 0:01:58]}  exf4 {[%clk 0:02:17]} 21. Rxf4 {[%clk 0:01:56]}  c6 {[%clk 0:02:13]} 22. Rd1 {[%clk 0:01:46]}  b5 {[%clk 0:02:07]} 23. cxb5 {[%clk 0:01:39]}  cxb5 {[%clk 0:02:07]} 24. Qd3 {[%clk 0:01:36]}  a6 {[%clk 0:02:03]} 25. Bb2 {[%clk 0:00:38]}  Qc7 {[%clk 0:02:01]} 26. Rc1 {[%clk 0:00:30]}  Qb6+ {[%clk 0:01:59]} 27. Kh1 {[%clk 0:00:30]}  Rxc1+ {[%clk 0:01:58]} 28. Bxc1 {[%clk 0:00:30]}  Rc8 {[%clk 0:01:56]} 29. Be3 {[%clk 0:00:28]}  Qc7 {[%clk 0:01:55]} 30. Rf1 {[%clk 0:00:28]}  Qc2 {[%clk 0:01:52]} 31. Qxc2 {[%clk 0:00:22]}  Rxc2 {[%clk 0:01:51]} 32. Rf2 {[%clk 0:00:23]}  Rxf2 {[%clk 0:01:44]} 33. Bxf2 {[%clk 0:00:23]}  d5 {[%clk 0:01:43]} 34. a3 {[%clk 0:00:21]}  Ne4 {[%clk 0:01:32]} 35. Bd4 {[%clk 0:00:20]}  Bd6 {[%clk 0:01:21]} 36. Bxe4 {[%clk 0:00:16]}  dxe4 {[%clk 0:01:21]} 37. Kg2 {[%clk 0:00:17]}  Kf8 {[%clk 0:01:19]} 38. Kf2 {[%clk 0:00:18]}  g6 {[%clk 0:01:18]} 39. Ke3 {[%clk 0:00:17]}  Ke7 {[%clk 0:01:19]} 40. Kxe4 {[%clk 0:00:17]}  Kxe6 {[%clk 0:01:19]} 41. Bf2 {[%clk 0:00:13]}  h5 {[%clk 0:01:18]} 42. h3 {[%clk 0:00:14]}  Be5 {[%clk 0:01:18]} 43. g4 {[%clk 0:00:08]}  hxg4 {[%clk 0:01:17]} 44. hxg4 {[%clk 0:00:09]}  Bb2 {[%clk 0:01:17]} 45. Kd3 {[%clk 0:00:07]}  Bxa3 {[%clk 0:01:16]} 46. Be1 {[%clk 0:00:07]}  Bb2 {[%clk 0:01:16]} 47. Kc2 {[%clk 0:00:06]}  Bd4 {[%clk 0:01:15]} 48. Kd3 {[%clk 0:00:07]}  Kd5 {[%clk 0:01:15]} 49. Bg3 {[%clk 0:00:07]}  Bb6 {[%clk 0:01:13]} 50. Bf4 {[%clk 0:00:07]}  a5 {[%clk 0:01:13]} 51. bxa5 {[%clk 0:00:07]}  Bxa5 {[%clk 0:01:13]} 52. Be3 {[%clk 0:00:06]}  Bb4 {[%clk 0:01:12]} 53. Bf4 {[%clk 0:00:06]}  Bc5 {[%clk 0:01:11]} 54. Kc3 {[%clk 0:00:07]}  Ke4 {[%clk 0:01:10]} 55. Bc7 {[%clk 0:00:06]}  Kf3 {[%clk 0:01:09]} 56. g5 {[%clk 0:00:07]}  Kg4 {[%clk 0:01:08]} 57. Bd8 {[%clk 0:00:07]}  Kf5 {[%clk 0:01:07]} 58. Kb3 {[%clk 0:00:07]}  Be3 {[%clk 0:01:06]} 59. Kb4 {[%clk 0:00:04]}  Bxg5 {[%clk 0:01:06]} 60. Bb6 {[%clk 0:00:03]}  Ke4 {[%clk 0:01:05]} 61. Kxb5 {[%clk 0:00:04]}  Be3 {[%clk 0:01:05]} 62. Bc7 {[%clk 0:00:02]}  g5 {[%clk 0:01:04]} 63. Kc4 {[%clk 0:00:02]}  g4 {[%clk 0:01:04]} 64. Bg3 {[%clk 0:00:02]}  Bf4 {[%clk 0:01:03]} 65. Bh4 {[%clk 0:00:02]}  Be3 {[%clk 0:00:59]} 66. Kc3 {[%clk 0:00:02]}  Kf3 {[%clk 0:00:58]} 67. Kd3 {[%clk 0:00:02]}  Bf2 {[%clk 0:00:58]} 0-1


[Site "https://www.chess.com"]

[Event "Titled Tuesday Blitz January 31 Early 2023"]
[White "Koellner, Ruben Gideon"]
[Black "Torres Dominguez, David"]
[WhiteFideId "12993093"]
[BlackFideId "2220857"]
[WhiteElo "2426"]
[BlackElo "1994"]
[Result "1-0"]
[Round "11"]
[TimeControl "180+2"]
[Date "2023.01.31"]
[WhiteClock "0:02:00"]
[BlackClock "0:00:25"]

1. d4 {[%clk 0:03:00]}  e5 {[%clk 0:01:13]} 2. dxe5 {[%clk 0:02:58]}  d6 {[%clk 0:01:12]} 3. Nf3 {[%clk 0:02:57]}  Bg4 {[%clk 0:01:10]} 4. Bf4 {[%clk 0:02:49]}  Nc6 {[%clk 0:01:10]} 5. Nc3 {[%clk 0:02:43]}  Bxf3 {[%clk 0:01:07]} 6. exf3 {[%clk 0:02:38]}  dxe5 {[%clk 0:01:08]} 7. Be3 {[%clk 0:02:37]}  Qxd1+ {[%clk 0:01:06]} 8. Rxd1 {[%clk 0:02:38]}  a6 {[%clk 0:01:05]} 9. Nd5 {[%clk 0:02:37]}  Bd6 {[%clk 0:01:04]} 10. Bd3 {[%clk 0:02:33]}  O-O-O {[%clk 0:01:04]} 11. Bf5+ {[%clk 0:02:31]}  Kb8 {[%clk 0:01:04]} 12. O-O {[%clk 0:02:31]}  Nge7 {[%clk 0:01:04]} 13. Nxe7 {[%clk 0:02:30]}  Nxe7 {[%clk 0:01:05]} 14. Bd3 {[%clk 0:02:31]}  f6 {[%clk 0:01:04]} 15. g3 {[%clk 0:02:29]}  h6 {[%clk 0:01:04]} 16. h4 {[%clk 0:02:29]}  g5 {[%clk 0:01:03]} 17. h5 {[%clk 0:02:28]}  Nc6 {[%clk 0:00:57]} 18. Be4 {[%clk 0:02:27]}  Ne7 {[%clk 0:00:56]} 19. g4 {[%clk 0:02:24]}  c6 {[%clk 0:00:56]} 20. Rd3 {[%clk 0:02:22]}  Bc7 {[%clk 0:00:56]} 21. Rfd1 {[%clk 0:02:21]}  Rxd3 {[%clk 0:00:56]} 22. Rxd3 {[%clk 0:02:22]}  Rd8 {[%clk 0:00:56]} 23. Rxd8+ {[%clk 0:02:20]}  Bxd8 {[%clk 0:00:57]} 24. Kf1 {[%clk 0:02:20]}  Nc8 {[%clk 0:00:53]} 25. Bc5 {[%clk 0:02:19]}  Be7 {[%clk 0:00:53]} 26. Be3 {[%clk 0:02:17]}  Kc7 {[%clk 0:00:53]} 27. Ke2 {[%clk 0:02:17]}  Nd6 {[%clk 0:00:53]} 28. Kd3 {[%clk 0:02:17]}  b6 {[%clk 0:00:49]} 29. c4 {[%clk 0:02:15]}  Nb7 {[%clk 0:00:49]} 30. Bf5 {[%clk 0:02:10]}  Nc5+ {[%clk 0:00:45]} 31. Bxc5 {[%clk 0:02:08]}  Bxc5 {[%clk 0:00:46]} 32. Ke4 {[%clk 0:02:09]}  Kd6 {[%clk 0:00:46]} 33. Bc8 {[%clk 0:02:08]}  a5 {[%clk 0:00:42]} 34. Kf5 {[%clk 0:02:08]}  Ke7 {[%clk 0:00:42]} 35. Kg6 {[%clk 0:02:08]}  Bxf2 {[%clk 0:00:42]} 36. Kxh6 {[%clk 0:02:08]}  Kf7 {[%clk 0:00:40]} 37. Bb7 {[%clk 0:02:07]}  b5 {[%clk 0:00:36]} 38. Bxc6 {[%clk 0:02:07]}  bxc4 {[%clk 0:00:36]} 39. Bd5+ {[%clk 0:02:06]}  Kf8 {[%clk 0:00:36]} 40. Bxc4 {[%clk 0:02:05]}  Bd4 {[%clk 0:00:35]} 41. b3 {[%clk 0:02:01]}  e4 {[%clk 0:00:34]} 42. fxe4 {[%clk 0:02:01]}  Be5 {[%clk 0:00:34]} 43. Kg6 {[%clk 0:02:01]}  Bd4 {[%clk 0:00:34]} 44. h6 {[%clk 0:02:00]}  Bc3 {[%clk 0:00:25]} 45. h7 {[%clk 0:02:00]}  f5 {[%clk 0:00:25]} 46. exf5 {[%clk 0:02:01]}  Bh8 {[%clk 0:00:24]} 47. f6 {[%clk 0:01:59]}  Ke8 {[%clk 0:00:24]} 48. a3 {[%clk 0:01:59]}  Kf8 {[%clk 0:00:24]} 49. b4 {[%clk 0:01:59]}  axb4 {[%clk 0:00:25]} 50. axb4 {[%clk 0:02:00]}  Ke8 {[%clk 0:00:25]} 51. b5 {[%clk 0:02:00]} 1-0


[Site "https://www.chess.com"]